[Event "*** Titled Tuesday Blitz"]
[Site "Chess.com"]
[Date "2021.03.30"]
[Round "4"]
[White "anasta10"]
[Black "Nikolaj_6"]
[Result "0-1"]
[WhiteElo "2487"]
[BlackElo "2651"]
[TimeControl "180+1"]
[EndTime "10:38:52 PDT"]
[Termination "Nikolaj_6 won by resignation"]

1. d4 {[%clk 0:02:59.6]} 1... Nf6 {[%clk 0:02:59.2]} 2. c4 {[%clk 0:02:57.8]}
2... e6 {[%clk 0:02:59.2]} 3. Nc3 {[%clk 0:02:57.6]} 3... Bb4 {[%clk 0:02:58.7]}
4. Nf3 {[%clk 0:02:57.5]} 4... b6 {[%clk 0:02:53.4]} 5. g3 {[%clk 0:02:57.5]}
5... Ba6 {[%clk 0:02:49.3]} 6. Bg2 {[%clk 0:02:57.3]} 6... Bxc3+ {[%clk
0:02:48.5]} 7. bxc3 {[%clk 0:02:56.5]} 7... Bxc4 {[%clk 0:02:41.1]} 8. O-O
{[%clk 0:02:56.1]} 8... Bd5 {[%clk 0:02:39.2]} 9. Qd3 {[%clk 0:02:49]} 9... O-O
{[%clk 0:02:34.8]} 10. c4 {[%clk 0:02:48.4]} 10... Be4 {[%clk 0:02:34]} 11. Qc3
{[%clk 0:02:42.6]} 11... d6 {[%clk 0:02:33.1]} 12. Rd1 {[%clk 0:02:34.9]} 12...
Nbd7 {[%clk 0:02:32.8]} 13. Bh3 {[%clk 0:02:28]} 13... Bxf3 {[%clk 0:02:28.2]}
14. Qxf3 {[%clk 0:02:27.3]} 14... d5 {[%clk 0:02:25.6]} 15. Bg2 {[%clk
0:02:24.2]} 15... Rc8 {[%clk 0:02:20.5]} 16. cxd5 {[%clk 0:02:18.6]} 16... exd5
{[%clk 0:02:19.4]} 17. Bf4 {[%clk 0:02:15.9]} 17... Re8 {[%clk 0:02:17.8]} 18.
Rac1 {[%clk 0:02:15]} 18... c6 {[%clk 0:02:12.7]} 19. Qd3 {[%clk 0:02:10]} 19...
b5 {[%clk 0:02:07.3]} 20. Bf3 {[%clk 0:01:32.5]} 20... Nb6 {[%clk 0:02:04.6]}
21. Qa3 {[%clk 0:01:32]} 21... Qd7 {[%clk 0:01:40]} 22. Be5 {[%clk 0:01:28]}
22... Nc4 {[%clk 0:01:35.9]} 23. Qc3 {[%clk 0:01:26]} 23... Qf5 {[%clk
0:01:27.8]} 24. a4 {[%clk 0:01:11.9]} 24... a6 {[%clk 0:01:22.5]} 25. axb5
{[%clk 0:01:07.4]} 25... axb5 {[%clk 0:01:23.4]} 26. Bf4 {[%clk 0:01:04.3]}
26... Ne4 {[%clk 0:01:21.8]} 27. Qb4 {[%clk 0:00:43.7]} 27... g5 {[%clk
0:01:17.6]} 28. Rxc4 {[%clk 0:00:24]} 28... bxc4 {[%clk 0:01:07.4]} 29. Bc1
{[%clk 0:00:24]} 29... g4 {[%clk 0:01:04.6]} 30. Bxe4 {[%clk 0:00:24.1]} 30...
Rxe4 {[%clk 0:01:02.9]} 31. Be3 {[%clk 0:00:24.6]} 31... Ree8 {[%clk 0:00:48.9]}
32. Ra1 {[%clk 0:00:20.6]} 32... Rb8 {[%clk 0:00:47.7]} 33. Qd6 {[%clk
0:00:17.5]} 33... Rb1+ {[%clk 0:00:46.7]} 34. Rxb1 {[%clk 0:00:17.7]} 34...
Qxb1+ {[%clk 0:00:47.6]} 35. Kg2 {[%clk 0:00:17.8]} 35... Qe4+ {[%clk
0:00:47.4]} 36. Kg1 {[%clk 0:00:18.2]} 36... Ra8 {[%clk 0:00:43.9]} 37. Bc1
{[%clk 0:00:12.6]} 37... Qxe2 {[%clk 0:00:41.6]} 38. Qf4 {[%clk 0:00:06.7]}
38... Qd1+ {[%clk 0:00:40]} 0-1

[Event "*** Titled Tuesday Blitz"]
[Site "Chess.com"]
[Date "2021.03.30"]
[Round "4"]
[White "Mikhail_Golubev"]
[Black "German_Bazeev"]
[Result "1-0"]
[WhiteElo "2541"]
[BlackElo "2779"]
[TimeControl "180+1"]
[EndTime "10:38:53 PDT"]
[Termination "Mikhail_Golubev won by resignation"]

1. e4 {[%clk 0:03:00.9]} 1... c6 {[%clk 0:02:58.5]} 2. d4 {[%clk 0:02:59.3]}
2... d5 {[%clk 0:02:58.6]} 3. Nc3 {[%clk 0:02:58.6]} 3... dxe4 {[%clk
0:02:58.4]} 4. Nxe4 {[%clk 0:02:59.1]} 4... Nf6 {[%clk 0:02:59.3]} 5. Nxf6+
{[%clk 0:02:58.3]} 5... exf6 {[%clk 0:03:00.2]} 6. c3 {[%clk 0:02:58.5]} 6...
Bd6 {[%clk 0:03:00.7]} 7. Bd3 {[%clk 0:02:57.8]} 7... O-O {[%clk 0:03:01.6]} 8.
Ne2 {[%clk 0:02:57.9]} 8... Re8 {[%clk 0:03:02.5]} 9. Qc2 {[%clk 0:02:57.8]}
9... h5 {[%clk 0:03:01.9]} 10. O-O {[%clk 0:02:56]} 10... h4 {[%clk 0:02:58.8]}
11. h3 {[%clk 0:02:55.5]} 11... Nd7 {[%clk 0:02:58.2]} 12. Bd2 {[%clk
0:02:52.8]} 12... Nf8 {[%clk 0:02:57.8]} 13. Rae1 {[%clk 0:02:52.3]} 13... Ne6
{[%clk 0:02:55.2]} 14. f4 {[%clk 0:02:42.2]} 14... Nc7 {[%clk 0:02:26.5]} 15. c4
{[%clk 0:02:31.8]} 15... c5 {[%clk 0:02:03.6]} 16. d5 {[%clk 0:02:25.5]} 16...
b5 {[%clk 0:01:45]} 17. b3 {[%clk 0:02:25.5]} 17... b4 {[%clk 0:01:43.9]} 18.
Kh1 {[%clk 0:02:15.4]} 18... Bd7 {[%clk 0:00:44.4]} 19. Ng1 {[%clk 0:02:14.4]}
19... Rxe1 {[%clk 0:00:43.1]} 20. Rxe1 {[%clk 0:02:13.9]} 20... Qc8 {[%clk
0:00:37.8]} 21. Nf3 {[%clk 0:02:08.5]} 21... Bxh3 {[%clk 0:00:24]} 22. gxh3
{[%clk 0:01:59.1]} 22... Qxh3+ {[%clk 0:00:24.9]} 23. Nh2 {[%clk 0:01:59.2]}
23... Re8 {[%clk 0:00:21.7]} 24. Rxe8+ {[%clk 0:01:46.1]} 24... Nxe8 {[%clk
0:00:22.6]} 25. Bf5 {[%clk 0:01:41.2]} 25... Qg3 {[%clk 0:00:22.5]} 26. Qe4
{[%clk 0:01:40.3]} 26... Kf8 {[%clk 0:00:22]} 27. Qf3 {[%clk 0:01:20.6]} 27...
g6 {[%clk 0:00:16]} 28. Bd7 {[%clk 0:01:18.7]} 28... Ng7 {[%clk 0:00:13.8]} 29.
Qxg3 {[%clk 0:01:12.2]} 29... hxg3 {[%clk 0:00:14.7]} 30. Nf1 {[%clk 0:00:59.2]}
30... Nh5 {[%clk 0:00:14.8]} 31. f5 {[%clk 0:00:59.2]} 31... Ke7 {[%clk
0:00:09.7]} 32. Bc8 {[%clk 0:00:47.1]} 32... Kd8 {[%clk 0:00:09.4]} 33. fxg6
{[%clk 0:00:42]} 33... Kxc8 {[%clk 0:00:09]} 34. gxf7 {[%clk 0:00:42.2]} 34...
Bf8 {[%clk 0:00:07.5]} 35. Kg2 {[%clk 0:00:41.2]} 35... Kd7 {[%clk 0:00:07.8]}
36. Nxg3 {[%clk 0:00:41.4]} 36... Nxg3 {[%clk 0:00:05.3]} 37. Kxg3 {[%clk
0:00:41.1]} 37... Bd6+ {[%clk 0:00:05]} 38. Bf4 {[%clk 0:00:39.4]} 38... Ke7
{[%clk 0:00:05.9]} 1-0

[Event "*** Titled Tuesday Blitz"]
[Site "Chess.com"]
[Date "2021.03.30"]
[Round "4"]
[White "liczner"]
[Black "chess94cu"]
[Result "0-1"]
[WhiteElo "2808"]
[BlackElo "2592"]
[TimeControl "180+1"]
[EndTime "10:38:55 PDT"]
[Termination "chess94cu won by resignation"]

1. e4 {[%clk 0:03:00.9]} 1... e5 {[%clk 0:02:55.3]} 2. Nf3 {[%clk 0:03:00.8]}
2... Nc6 {[%clk 0:02:56.1]} 3. Bb5 {[%clk 0:03:01.2]} 3... a6 {[%clk 0:02:56.3]}
4. Bxc6 {[%clk 0:03:01.7]} 4... dxc6 {[%clk 0:02:57.2]} 5. O-O {[%clk
0:03:02.3]} 5... Bg4 {[%clk 0:02:50.7]} 6. h3 {[%clk 0:03:02.2]} 6... Bxf3
{[%clk 0:02:50.6]} 7. Qxf3 {[%clk 0:03:01.5]} 7... Qd7 {[%clk 0:02:51.4]} 8. d3
{[%clk 0:02:56.6]} 8... O-O-O {[%clk 0:02:51]} 9. Nd2 {[%clk 0:02:53.8]} 9... f6
{[%clk 0:02:49.9]} 10. Nc4 {[%clk 0:02:49.6]} 10... h5 {[%clk 0:02:49.5]} 11.
Bd2 {[%clk 0:02:38]} 11... Bc5 {[%clk 0:02:42.6]} 12. b4 {[%clk 0:02:35.7]}
12... Bd4 {[%clk 0:02:42.5]} 13. Rab1 {[%clk 0:02:32.5]} 13... g5 {[%clk
0:02:41.4]} 14. Ne3 {[%clk 0:02:24.1]} 14... g4 {[%clk 0:02:24.8]} 15. Qf5
{[%clk 0:02:15.7]} 15... gxh3 {[%clk 0:02:04.6]} 16. gxh3 {[%clk 0:02:16]} 16...
Ne7 {[%clk 0:02:01.8]} 17. Qxd7+ {[%clk 0:02:12.7]} 17... Kxd7 {[%clk
0:02:02.7]} 18. Kh2 {[%clk 0:02:08.5]} 18... Ke6 {[%clk 0:02:00.7]} 19. Rg1
{[%clk 0:01:48.1]} 19... Rhg8 {[%clk 0:01:59.4]} 20. Rxg8 {[%clk 0:01:25.5]}
20... Rxg8 {[%clk 0:01:57.3]} 21. Rg1 {[%clk 0:01:26.4]} 21... Rxg1 {[%clk
0:01:56.5]} 22. Kxg1 {[%clk 0:01:27.3]} 22... c5 {[%clk 0:01:37.7]} 23. Nf5
{[%clk 0:01:12.3]} 23... cxb4 {[%clk 0:01:22.2]} 24. Nxd4+ {[%clk 0:00:59.8]}
24... exd4 {[%clk 0:01:23.1]} 25. Bxb4 {[%clk 0:01:00]} 25... Nc6 {[%clk
0:00:54.3]} 26. Bd2 {[%clk 0:00:59.1]} 26... Ne5 {[%clk 0:00:47.8]} 27. Kg2
{[%clk 0:00:58.7]} 27... f5 {[%clk 0:00:48.4]} 28. Bf4 {[%clk 0:00:42.3]} 28...
c5 {[%clk 0:00:45]} 29. Kg3 {[%clk 0:00:18.2]} 29... Ng6 {[%clk 0:00:40.4]} 30.
Bd2 {[%clk 0:00:16.6]} 30... b5 {[%clk 0:00:39.6]} 31. f3 {[%clk 0:00:13.8]}
31... b4 {[%clk 0:00:38.9]} 32. Bc1 {[%clk 0:00:06.7]} 32... a5 {[%clk
0:00:38.9]} 33. Bf4 {[%clk 0:00:04.6]} 33... h4+ {[%clk 0:00:33.7]} 0-1

[Event "*** Titled Tuesday Blitz"]
[Site "Chess.com"]
[Date "2021.03.30"]
[Round "4"]
[White "Make_it_shine060"]
[Black "morte-negra"]
[Result "0-1"]
[WhiteElo "2213"]
[BlackElo "1896"]
[TimeControl "180+1"]
[EndTime "10:38:55 PDT"]
[Termination "morte-negra won by checkmate"]

1. d4 {[%clk 0:03:00.9]} 1... Nf6 {[%clk 0:02:58.6]} 2. c4 {[%clk 0:02:55.2]}
2... c5 {[%clk 0:02:58.5]} 3. d5 {[%clk 0:02:54.6]} 3... e6 {[%clk 0:02:58.9]}
4. Nc3 {[%clk 0:02:53.9]} 4... exd5 {[%clk 0:02:59.1]} 5. cxd5 {[%clk
0:02:54.8]} 5... d6 {[%clk 0:02:59.6]} 6. e4 {[%clk 0:02:54.1]} 6... g6 {[%clk
0:02:59.9]} 7. Nge2 {[%clk 0:02:48.8]} 7... Bg7 {[%clk 0:02:59.4]} 8. Ng3 {[%clk
0:02:48.3]} 8... O-O {[%clk 0:02:58.8]} 9. Bd3 {[%clk 0:02:46.9]} 9... a6 {[%clk
0:02:58.5]} 10. a4 {[%clk 0:02:46]} 10... Nbd7 {[%clk 0:02:55.6]} 11. O-O {[%clk
0:02:44]} 11... Re8 {[%clk 0:02:55.8]} 12. Re1 {[%clk 0:02:42.1]} 12... Rb8
{[%clk 0:02:52.9]} 13. h3 {[%clk 0:02:39.3]} 13... Qc7 {[%clk 0:02:47.4]} 14. a5
{[%clk 0:02:25.8]} 14... c4 {[%clk 0:02:41]} 15. Bf1 {[%clk 0:02:22.3]} 15... b5
{[%clk 0:02:38.6]} 16. axb6 {[%clk 0:02:11.6]} 16... Nxb6 {[%clk 0:02:38.4]} 17.
Be3 {[%clk 0:02:06.3]} 17... Bd7 {[%clk 0:02:24.3]} 18. Qc2 {[%clk 0:02:01]}
18... Bb5 {[%clk 0:02:15.8]} 19. Nxb5 {[%clk 0:01:27.3]} 19... axb5 {[%clk
0:02:11.7]} 20. Ra6 {[%clk 0:01:25.4]} 20... Nbd7 {[%clk 0:01:56.9]} 21. Rc6
{[%clk 0:01:07.4]} 21... Qa5 {[%clk 0:01:48.9]} 22. Bd2 {[%clk 0:01:04.1]} 22...
Qa2 {[%clk 0:01:25.7]} 23. Rxd6 {[%clk 0:00:54.7]} 23... Nc5 {[%clk 0:01:12]}
24. Bc3 {[%clk 0:00:35.3]} 24... Nfd7 {[%clk 0:01:00.4]} 25. Bxg7 {[%clk
0:00:30.9]} 25... Kxg7 {[%clk 0:01:00.2]} 26. e5 {[%clk 0:00:23.1]} 26... Nxe5
{[%clk 0:00:53.8]} 27. f4 {[%clk 0:00:18.8]} 27... Ned3 {[%clk 0:00:48.7]} 28.
Qc3+ {[%clk 0:00:18.3]} 28... Kg8 {[%clk 0:00:45.4]} 29. Rxe8+ {[%clk
0:00:17.1]} 29... Rxe8 {[%clk 0:00:44.4]} 30. f5 {[%clk 0:00:16.8]} 30... Qxb2
{[%clk 0:00:39.3]} 31. Qa5 {[%clk 0:00:15.5]} 31... Qf2+ {[%clk 0:00:36.3]} 32.
Kh2 {[%clk 0:00:15]} 32... Ne1 {[%clk 0:00:32.4]} 33. Re6 {[%clk 0:00:09]} 33...
Nf3+ {[%clk 0:00:31.8]} 34. Kh1 {[%clk 0:00:08.5]} 34... Qg1# {[%clk 0:00:32.2]}
0-1

[Event "*** Titled Tuesday Blitz"]
[Site "Chess.com"]
[Date "2021.03.30"]
[Round "4"]
[White "GM_Crest"]
[Black "WanderingPuppet"]
[Result "1-0"]
[WhiteElo "2738"]
[BlackElo "2511"]
[TimeControl "180+1"]
[EndTime "10:38:56 PDT"]
[Termination "GM_Crest won on time"]

1. d4 {[%clk 0:03:00.9]} 1... Nf6 {[%clk 0:02:58.6]} 2. c4 {[%clk 0:03:00.1]}
2... e6 {[%clk 0:02:57.8]} 3. Nc3 {[%clk 0:02:59.6]} 3... Bb4 {[%clk 0:02:57.2]}
4. e3 {[%clk 0:02:59.7]} 4... O-O {[%clk 0:02:56.3]} 5. Ne2 {[%clk 0:02:59.9]}
5... d5 {[%clk 0:02:54.6]} 6. a3 {[%clk 0:02:59.8]} 6... Bd6 {[%clk 0:02:48.6]}
7. c5 {[%clk 0:02:59.5]} 7... Be7 {[%clk 0:02:48.2]} 8. b4 {[%clk 0:02:59.7]}
8... b6 {[%clk 0:02:31.7]} 9. Nf4 {[%clk 0:02:58.5]} 9... a5 {[%clk 0:02:22.7]}
10. Bd2 {[%clk 0:02:58.4]} 10... axb4 {[%clk 0:02:14.2]} 11. axb4 {[%clk
0:02:58.2]} 11... Rxa1 {[%clk 0:02:14.2]} 12. Qxa1 {[%clk 0:02:58.8]} 12... Nc6
{[%clk 0:02:07.8]} 13. Qa4 {[%clk 0:02:40.5]} 13... e5 {[%clk 0:01:41.1]} 14.
Qxc6 {[%clk 0:01:48.5]} 14... exf4 {[%clk 0:01:39.8]} 15. exf4 {[%clk
0:01:48.8]} 15... Bd7 {[%clk 0:01:16.9]} 16. Qb7 {[%clk 0:01:48.6]} 16... Qa8
{[%clk 0:01:11.2]} 17. Qxa8 {[%clk 0:00:54.3]} 17... Rxa8 {[%clk 0:01:12.1]} 18.
Bd3 {[%clk 0:00:37.8]} 18... Ra1+ {[%clk 0:00:58.1]} 19. Nb1 {[%clk 0:00:20.1]}
19... Ne4 {[%clk 0:00:45.8]} 20. O-O {[%clk 0:00:14.2]} 20... g6 {[%clk
0:00:30.7]} 21. Be3 {[%clk 0:00:13.6]} 21... Bf6 {[%clk 0:00:22.7]} 22. f3
{[%clk 0:00:13.4]} 22... bxc5 {[%clk 0:00:14.3]} 23. bxc5 {[%clk 0:00:13]} 23...
Nxc5 {[%clk 0:00:07]} 24. dxc5 {[%clk 0:00:12.8]} 24... Ba4 {[%clk 0:00:05.2]}
25. c6 {[%clk 0:00:09.9]} 25... Bxc6 {[%clk 0:00:03.7]} 26. Rc1 {[%clk
0:00:10.1]} 26... Ba4 {[%clk 0:00:01.7]} 27. Rxc7 {[%clk 0:00:10.1]} 1-0

[Event "*** Titled Tuesday Blitz"]
[Site "Chess.com"]
[Date "2021.03.30"]
[Round "4"]
[White "Tea99"]
[Black "Rakesh"]
[Result "0-1"]
[WhiteElo "2293"]
[BlackElo "2478"]
[TimeControl "180+1"]
[EndTime "10:38:56 PDT"]
[Termination "Rakesh won by checkmate"]

1. e4 {[%clk 0:03:00.9]} 1... e6 {[%clk 0:02:54.7]} 2. d4 {[%clk 0:03:00.5]}
2... c5 {[%clk 0:02:55.6]} 3. Nf3 {[%clk 0:02:58.6]} 3... cxd4 {[%clk
0:02:56.5]} 4. Nxd4 {[%clk 0:02:59.5]} 4... a6 {[%clk 0:02:56.2]} 5. c4 {[%clk
0:02:57.4]} 5... Nf6 {[%clk 0:02:50.1]} 6. Nc3 {[%clk 0:02:57.2]} 6... Bb4
{[%clk 0:02:50.1]} 7. Bd3 {[%clk 0:02:44]} 7... Nc6 {[%clk 0:02:42.6]} 8. Nxc6
{[%clk 0:02:32.3]} 8... dxc6 {[%clk 0:02:43.5]} 9. O-O {[%clk 0:02:32.7]} 9...
e5 {[%clk 0:02:41.9]} 10. Ne2 {[%clk 0:02:27]} 10... O-O {[%clk 0:02:36.3]} 11.
a3 {[%clk 0:02:26.2]} 11... Bc5 {[%clk 0:02:36]} 12. Bg5 {[%clk 0:02:20.5]}
12... h6 {[%clk 0:02:35.4]} 13. Bh4 {[%clk 0:02:20.1]} 13... Bg4 {[%clk
0:02:35.2]} 14. h3 {[%clk 0:02:13.5]} 14... Bxe2 {[%clk 0:02:24.7]} 15. Qxe2
{[%clk 0:02:14.4]} 15... g5 {[%clk 0:02:24.8]} 16. Bg3 {[%clk 0:02:12.5]} 16...
Qe7 {[%clk 0:02:24.4]} 17. h4 {[%clk 0:02:01.5]} 17... Kg7 {[%clk 0:02:22.5]}
18. Qf3 {[%clk 0:01:50.5]} 18... Qe6 {[%clk 0:02:10.9]} 19. Rad1 {[%clk
0:01:37.3]} 19... Rad8 {[%clk 0:02:05.4]} 20. Rfe1 {[%clk 0:01:31.8]} 20... Bd4
{[%clk 0:02:02.7]} 21. b3 {[%clk 0:01:23]} 21... a5 {[%clk 0:01:59.6]} 22. Bc2
{[%clk 0:00:49.6]} 22... Rfe8 {[%clk 0:01:49.9]} 23. hxg5 {[%clk 0:00:39.3]}
23... hxg5 {[%clk 0:01:49.1]} 24. Qe2 {[%clk 0:00:31.9]} 24... Rh8 {[%clk
0:01:47]} 25. Qf3 {[%clk 0:00:26.5]} 25... Nh5 {[%clk 0:01:43.5]} 26. Kf1 {[%clk
0:00:18.8]} 26... Qf6 {[%clk 0:01:40.2]} 27. Ke2 {[%clk 0:00:14.4]} 27... Rd6
{[%clk 0:01:34.8]} 28. Rd3 {[%clk 0:00:12.6]} 28... Qxf3+ {[%clk 0:01:22.4]} 29.
Rxf3 {[%clk 0:00:13.5]} 29... Rhd8 {[%clk 0:01:21.7]} 30. Rd1 {[%clk 0:00:12.3]}
30... g4 {[%clk 0:01:10.4]} 31. Rfd3 {[%clk 0:00:11.4]} 31... Rf6 {[%clk
0:01:10.8]} 32. Rf1 {[%clk 0:00:08.5]} 32... b6 {[%clk 0:01:09.3]} 33. Bh2
{[%clk 0:00:08.5]} 33... Rdd6 {[%clk 0:01:06.2]} 34. Rxd4 {[%clk 0:00:08.2]}
34... exd4 {[%clk 0:01:02.7]} 35. Be5 {[%clk 0:00:09.1]} 35... Nf4+ {[%clk
0:00:55.5]} 36. Kd2 {[%clk 0:00:07.5]} 36... Nxg2 {[%clk 0:00:54.9]} 37. Bxf6+
{[%clk 0:00:07.2]} 37... Rxf6 {[%clk 0:00:54.8]} 38. Bd1 {[%clk 0:00:06.8]}
38... Rf4 {[%clk 0:00:53.6]} 39. Rg1 {[%clk 0:00:05.7]} 39... Rxf2+ {[%clk
0:00:52.8]} 40. Kd3 {[%clk 0:00:06.1]} 40... c5 {[%clk 0:00:48.9]} 41. Bxg4
{[%clk 0:00:05.6]} 41... Kf6 {[%clk 0:00:49.4]} 42. Bh3 {[%clk 0:00:05.2]} 42...
Nf4# {[%clk 0:00:49.4]} 0-1

[Event "*** Titled Tuesday Blitz"]
[Site "Chess.com"]
[Date "2021.03.30"]
[Round "4"]
[White "Vandros57"]
[Black "ViktoriyaTarasova"]
[Result "0-1"]
[WhiteElo "2204"]
[BlackElo "2407"]
[TimeControl "180+1"]
[EndTime "10:38:58 PDT"]
[Termination "ViktoriyaTarasova won on time"]

1. d4 {[%clk 0:03:00.9]} 1... Nf6 {[%clk 0:02:58.9]} 2. c4 {[%clk 0:02:59.2]}
2... e6 {[%clk 0:02:58.8]} 3. Nf3 {[%clk 0:02:57.6]} 3... b6 {[%clk 0:02:58.4]}
4. g3 {[%clk 0:02:55.3]} 4... Ba6 {[%clk 0:02:57.8]} 5. Qa4 {[%clk 0:02:53.6]}
5... c5 {[%clk 0:02:50.1]} 6. Bg2 {[%clk 0:02:46.9]} 6... Bb7 {[%clk 0:02:49.1]}
7. O-O {[%clk 0:02:42]} 7... cxd4 {[%clk 0:02:47.7]} 8. Nxd4 {[%clk 0:02:40.3]}
8... Bxg2 {[%clk 0:02:47.3]} 9. Kxg2 {[%clk 0:02:39.5]} 9... Qc8 {[%clk
0:02:47.2]} 10. Bf4 {[%clk 0:02:28]} 10... Qb7+ {[%clk 0:02:45.6]} 11. f3 {[%clk
0:02:25.6]} 11... a6 {[%clk 0:02:42.9]} 12. Nc3 {[%clk 0:02:19.3]} 12... Be7
{[%clk 0:02:35.5]} 13. Rfd1 {[%clk 0:02:16.7]} 13... O-O {[%clk 0:02:34.1]} 14.
Bxb8 {[%clk 0:02:14.6]} 14... Raxb8 {[%clk 0:02:31.4]} 15. e4 {[%clk 0:02:05.9]}
15... d6 {[%clk 0:01:42.6]} 16. Rac1 {[%clk 0:01:58.8]} 16... Rfc8 {[%clk
0:01:40.8]} 17. Nce2 {[%clk 0:01:55.8]} 17... Nd7 {[%clk 0:01:35.7]} 18. b4
{[%clk 0:01:51.2]} 18... Ne5 {[%clk 0:01:32.3]} 19. Qb3 {[%clk 0:01:49.5]} 19...
b5 {[%clk 0:01:29.6]} 20. cxb5 {[%clk 0:01:42.5]} 20... axb5 {[%clk 0:01:29.4]}
21. h3 {[%clk 0:01:34.5]} 21... Nc4 {[%clk 0:01:26.9]} 22. Kh2 {[%clk
0:01:25.9]} 22... Bf6 {[%clk 0:01:24.1]} 23. h4 {[%clk 0:01:13.7]} 23... Ra8
{[%clk 0:01:23.6]} 24. Rc2 {[%clk 0:00:59.8]} 24... Ra3 {[%clk 0:01:16.6]} 25.
Qb1 {[%clk 0:00:57.6]} 25... h6 {[%clk 0:00:54.3]} 26. h5 {[%clk 0:00:55]} 26...
d5 {[%clk 0:00:49.2]} 27. Rc3 {[%clk 0:00:24.7]} 27... Rca8 {[%clk 0:00:43.4]}
28. exd5 {[%clk 0:00:20.3]} 28... exd5 {[%clk 0:00:38]} 29. Rxa3 {[%clk
0:00:18.5]} 29... Rxa3 {[%clk 0:00:37]} 30. Qf5 {[%clk 0:00:15.5]} 30... Rxa2
{[%clk 0:00:32.8]} 31. Kh3 {[%clk 0:00:12.8]} 31... Ne3 {[%clk 0:00:26.4]} 32.
Qf4 {[%clk 0:00:09.4]} 32... Nxd1 {[%clk 0:00:24.1]} 0-1

[Event "*** Titled Tuesday Blitz"]
[Site "Chess.com"]
[Date "2021.03.30"]
[Round "4"]
[White "Zipa5"]
[Black "Bishops83"]
[Result "0-1"]
[WhiteElo "1918"]
[BlackElo "2241"]
[TimeControl "180+1"]
[EndTime "10:38:58 PDT"]
[Termination "Bishops83 won on time"]

1. Nf3 {[%clk 0:03:00.9]} 1... c5 {[%clk 0:02:58.8]} 2. c4 {[%clk 0:02:58.1]}
2... g6 {[%clk 0:02:58.5]} 3. d4 {[%clk 0:02:55.4]} 3... cxd4 {[%clk 0:02:58.3]}
4. Nxd4 {[%clk 0:02:53.6]} 4... Nc6 {[%clk 0:02:57.5]} 5. Nc2 {[%clk 0:02:51.4]}
5... Bg7 {[%clk 0:02:56.8]} 6. e4 {[%clk 0:02:48.5]} 6... Nf6 {[%clk 0:02:56.3]}
7. Nc3 {[%clk 0:02:45.8]} 7... d6 {[%clk 0:02:56.6]} 8. f3 {[%clk 0:02:43]} 8...
O-O {[%clk 0:02:53.8]} 9. Be3 {[%clk 0:02:41.2]} 9... Nd7 {[%clk 0:02:52.1]} 10.
Qd2 {[%clk 0:02:36.4]} 10... a6 {[%clk 0:02:48.8]} 11. Be2 {[%clk 0:02:33.7]}
11... Nc5 {[%clk 0:02:38.2]} 12. O-O {[%clk 0:02:25.2]} 12... f5 {[%clk
0:02:24.2]} 13. exf5 {[%clk 0:02:16.3]} 13... Bxf5 {[%clk 0:02:25.1]} 14. Nd4
{[%clk 0:02:09.9]} 14... Nxd4 {[%clk 0:01:42.6]} 15. Bxd4 {[%clk 0:02:08.4]}
15... Bxd4+ {[%clk 0:01:43.3]} 16. Qxd4 {[%clk 0:02:06.9]} 16... e5 {[%clk
0:01:44.2]} 17. Qd2 {[%clk 0:01:56.5]} 17... Ne6 {[%clk 0:01:43.8]} 18. Bd3
{[%clk 0:01:31.9]} 18... Bxd3 {[%clk 0:00:50.1]} 19. Qxd3 {[%clk 0:01:30.1]}
19... Nf4 {[%clk 0:00:50]} 20. Qd2 {[%clk 0:01:25.4]} 20... Rc8 {[%clk
0:00:50.1]} 21. b3 {[%clk 0:01:21.7]} 21... b5 {[%clk 0:00:39.4]} 22. Rf2 {[%clk
0:00:25.4]} 22... bxc4 {[%clk 0:00:37.4]} 23. bxc4 {[%clk 0:00:22.3]} 23... Rxc4
{[%clk 0:00:29.8]} 24. Rd1 {[%clk 0:00:21.2]} 24... Rd4 {[%clk 0:00:12.6]} 25.
Qc1 {[%clk 0:00:10.6]} 25... Rxd1+ {[%clk 0:00:10.7]} 26. Qxd1 {[%clk
0:00:07.6]} 26... Qa5 {[%clk 0:00:09.5]} 0-1

[Event "*** Titled Tuesday Blitz"]
[Site "Chess.com"]
[Date "2021.03.30"]
[Round "4"]
[White "federicosellitti"]
[Black "KuzubovYuriy"]
[Result "0-1"]
[WhiteElo "2543"]
[BlackElo "2856"]
[TimeControl "180+1"]
[EndTime "10:38:59 PDT"]
[Termination "KuzubovYuriy won on time"]

1. e4 {[%clk 0:03:00.9]} 1... c5 {[%clk 0:02:59.7]} 2. Nc3 {[%clk 0:03:01.3]}
2... Nc6 {[%clk 0:02:59.3]} 3. g3 {[%clk 0:03:01.8]} 3... e6 {[%clk 0:02:54.8]}
4. Bg2 {[%clk 0:03:02]} 4... Nf6 {[%clk 0:02:55.3]} 5. f4 {[%clk 0:03:00.2]}
5... d5 {[%clk 0:02:54.7]} 6. e5 {[%clk 0:03:00.7]} 6... Nd7 {[%clk 0:02:53.7]}
7. Nf3 {[%clk 0:03:01.2]} 7... b6 {[%clk 0:02:47.3]} 8. O-O {[%clk 0:03:01.3]}
8... Bb7 {[%clk 0:02:47.2]} 9. d3 {[%clk 0:03:01.6]} 9... Be7 {[%clk 0:02:46.1]}
10. Qe2 {[%clk 0:02:53.4]} 10... O-O {[%clk 0:02:42.3]} 11. g4 {[%clk
0:02:52.9]} 11... Kh8 {[%clk 0:02:10.5]} 12. f5 {[%clk 0:02:48.3]} 12... d4
{[%clk 0:01:51.9]} 13. Nb5 {[%clk 0:02:04.2]} 13... a6 {[%clk 0:01:42.7]} 14.
Na3 {[%clk 0:01:59]} 14... b5 {[%clk 0:01:42.9]} 15. Bf4 {[%clk 0:01:39.2]}
15... Nb6 {[%clk 0:01:39.7]} 16. Rae1 {[%clk 0:01:21]} 16... Nd5 {[%clk
0:01:39.6]} 17. Bd2 {[%clk 0:01:21.7]} 17... Qc7 {[%clk 0:01:26.7]} 18. fxe6
{[%clk 0:01:12.3]} 18... fxe6 {[%clk 0:01:26.3]} 19. Ng5 {[%clk 0:01:13]} 19...
Qd7 {[%clk 0:01:15.5]} 20. Rxf8+ {[%clk 0:00:42.1]} 20... Rxf8 {[%clk
0:01:14.9]} 21. Rf1 {[%clk 0:00:42.7]} 21... Rxf1+ {[%clk 0:00:51.5]} 22. Bxf1
{[%clk 0:00:34.2]} 22... Kg8 {[%clk 0:00:48.7]} 23. Bg2 {[%clk 0:00:20.3]} 23...
h6 {[%clk 0:00:43.2]} 24. Nh3 {[%clk 0:00:13]} 24... Qc7 {[%clk 0:00:32.3]} 25.
Nf4 {[%clk 0:00:12.1]} 25... Nxf4 {[%clk 0:00:31.1]} 26. Bxf4 {[%clk 0:00:12]}
26... Nb4 {[%clk 0:00:30.1]} 27. c3 {[%clk 0:00:09.1]} 27... Bxg2 {[%clk
0:00:25.2]} 28. cxb4 {[%clk 0:00:04.8]} 28... Bb7 {[%clk 0:00:21.9]} 29. bxc5
{[%clk 0:00:03.2]} 29... Qxc5 {[%clk 0:00:21.6]} 30. Nc2 {[%clk 0:00:02.7]}
30... Qd5 {[%clk 0:00:20.4]} 31. Kf2 {[%clk 0:00:02.1]} 31... Bh4+ {[%clk
0:00:18.6]} 0-1